fUSD/lending_fUSD_20260702
["ID","MTS","AMOUNT","RATE_DAILY","PERIOD"]
[426896077,1782991854000,-225.746146,0.00032199,7]
[426896085,1782991854000,-225.746146,0.00032199,7]
[426896093,1782991854000,-257.452609,0.00032199,7]
[426896094,1782991854000,-151.0,0.00032199,7]
[426896071,1782991854000,-500.0,0.0003217,2]
[426896084,1782991854000,-180.477987,0.00032199,7]
[426896078,1782991854000,-201.355544,0.00032199,7]
[426896072,1782991854000,-1000.0,0.0003217,2]
[426896060,1782991854000,-574.05,0.00032162,2]
[426896064,1782991854000,-574.05,0.00032162,2]
[426896086,1782991854000,-151.0,0.00032199,7]
[426896046,1782991854000,-574.09,0.0003216,2]
[426896047,1782991854000,-574.05,0.0003216,2]
[426896049,1782991854000,-573.08,0.00032162,2]
[426896050,1782991854000,-637.95,0.00032162,2]
[426896051,1782991854000,-573.53,0.00032162,2]
[426896057,1782991854000,-574.05,0.00032162,2]
[426896056,1782991854000,-151.0,0.00032162,2]
[426896055,1782991854000,-574.05,0.00032162,2]
[426896061,1782991854000,-574.05,0.00032162,2]
[426896053,1782991854000,-574.05,0.00032162,2]
[426896054,1782991854000,-185.04,0.00032162,2]
[426896052,1782991854000,-573.89,0.00032162,2]
[426896059,1782991854000,-151.0,0.00032162,2]
[426896058,1782991854000,-185.31,0.00032162,2]
[426896063,1782991854000,-151.0,0.00032162,2]
[426896062,1782991854000,-185.36,0.00032162,2]
[426896066,1782991854000,-151.0,0.00032162,2]
[426896065,1782991854000,-345.38,0.00032162,2]
[426896068,1782991854000,-151.0,0.00032163,2]
[426896087,1782991854000,-180.477987,0.00032199,7]
[426896048,1782991854000,-185.37,0.0003216,2]
[426896092,1782991854000,-257.452609,0.00032199,7]
[426896111,1782991854000,-151.0,0.000322,7]
[426896117,1782991854000,-151.0,0.000322,7]
[426896119,1782991854000,-251.457765,0.000322,7]
[426896121,1782991854000,-151.0,0.000322,7]
[426896123,1782991854000,-200.0,0.00032204,2]
[426896118,1782991854000,-151.0,0.000322,7]
[426896127,1782991854000,-150.0,0.00032219,2]
[426896120,1782991854000,-151.0,0.000322,7]
[426896126,1782991854000,-2494.61451243,0.00032219,2]
[426896122,1782991854000,-151.0,0.000322,7]
[426896125,1782991854000,-150.0,0.00032219,2]
[426896124,1782991854000,-200.0,0.00032204,2]
[426896129,1782991854000,-800.78,0.00032232,7]
[426896128,1782991854000,-1756.69776802,0.00032219,2]
[426896133,1782991854000,-866.91246725,0.00032256,2]
[426896134,1782991854000,-9730.94459059,0.00032259,2]
[426896131,1782991854000,-173.66,0.00032249,2]
[426896132,1782991854000,-350.0,0.00032251,3]
[426896089,1782991854000,-257.452609,0.00032199,7]
[426896110,1782991854000,-151.0,0.000322,7]
[426896114,1782991854000,-151.0,0.000322,7]
[426896130,1782991854000,-5039.10856189,0.0003224,2]
[426896107,1782991854000,-151.0,0.000322,7]
[426896090,1782991854000,-151.0,0.00032199,7]
[426896091,1782991854000,-151.0,0.00032199,7]
[426896101,1782991854000,-259.892356,0.000322,7]
[426896103,1782991854000,-151.0,0.000322,7]
[426896088,1782991854000,-151.0,0.00032199,7]
[426896097,1782991854000,-2062.85214779,0.000322,2]
[426896104,1782991854000,-151.0,0.000322,7]
[426896095,1782991854000,-165.77221,0.00032199,7]
[426896105,1782991854000,-151.0,0.000322,7]
[426896100,1782991854000,-259.892356,0.000322,7]
[426896099,1782991854000,-259.892356,0.000322,7]
[426896113,1782991854000,-159.12831,0.000322,7]
[426896098,1782991854000,-259.892356,0.000322,7]
[426896115,1782991854000,-1262.58412347,0.000322,2]
[426896112,1782991854000,-151.0,0.000322,7]
[426896106,1782991854000,-151.0,0.000322,7]
[426896109,1782991854000,-151.0,0.000322,7]
[426896102,1782991854000,-151.0,0.000322,7]
[426896096,1782991854000,-257.452609,0.00032199,7]
[426896116,1782991854000,-151.0,0.000322,7]
[426896108,1782991854000,-151.0,0.000322,7]
[426896136,1782991864000,220.0,0.0003013,120]
[426896137,1782991910000,605.01734041,0.00011966,2]
[426896140,1782991976000,97400.0,0.000299,120]
[426896141,1782992044000,574560.6379,0.000299,120]
[426896143,1782992172000,209.08,0.0002986,120]
[426896144,1782992229000,10000.0,0.00027297,120]
[426896145,1782992250000,157.11,0.00026246,120]
[426896146,1782992395000,500.0,0.00028363,120]
[426896148,1782992396000,482.54884208,0.00029999,120]
[426896147,1782992396000,500.0,0.00029999,120]
[426896149,1782992540000,361.56,0.00024967,120]
[426896150,1782992596000,712.0,0.00030137,120]
[426896151,1782992685000,1762.66170293,0.00015,2]
[426896152,1782992685000,2103.76053469,0.00015,2]
[426896154,1782992685000,9394.98265959,0.00015,2]
[426896155,1782992685000,10000.0,0.00015,2]
[426896156,1782992685000,10000.0,0.00015,2]
[426896157,1782992685000,10000.0,0.00015,2]
[426896158,1782992685000,10000.0,0.00015,2]
[426896153,1782992685000,1812.256965,0.00015,2]
[426896168,1782992686000,10000.0,0.00015,2]
[426896169,1782992686000,10000.0,0.00015,2]
[426896170,1782992686000,10000.0,0.00015,2]
[426896171,1782992686000,10000.0,0.00015,2]
[426896167,1782992686000,10000.0,0.00015,2]
[426896166,1782992686000,10000.0,0.00015,2]
[426896161,1782992686000,10000.0,0.00015,2]
[426896163,1782992686000,10000.0,0.00015,2]
[426896164,1782992686000,10000.0,0.00015,2]
[426896162,1782992686000,10000.0,0.00015,2]
[426896160,1782992686000,10000.0,0.00015,2]
[426896159,1782992686000,10000.0,0.00015,2]
[426896165,1782992686000,10000.0,0.00015,2]
[426896173,1782992686000,10000.0,0.00015,2]
[426896179,1782992686000,10000.0,0.00015,2]
[426896175,1782992686000,10000.0,0.00015,2]
[426896188,1782992686000,10000.0,0.00015,2]
[426896187,1782992686000,10000.0,0.00015,2]
[426896186,1782992686000,10000.0,0.00015,2]
[426896183,1782992686000,10000.0,0.00015,2]
[426896182,1782992686000,10000.0,0.00015,2]
[426896185,1782992686000,10000.0,0.00015,2]
[426896184,1782992686000,10000.0,0.00015,2]
[426896180,1782992686000,10000.0,0.00015,2]
[426896178,1782992686000,10000.0,0.00015,2]
[426896176,1782992686000,10000.0,0.00015,2]
[426896177,1782992686000,10000.0,0.00015,2]
[426896174,1782992686000,10000.0,0.00015,2]
[426896181,1782992686000,10000.0,0.00015,2]
[426896172,1782992686000,10000.0,0.00015,2]
[426896190,1782992687000,10000.0,0.00015,2]
[426896189,1782992687000,10000.0,0.00015,2]
[426896191,1782992761000,192.31851246,0.00014925,2]
[426896193,1782992792000,456.74398005,0.000149,2]
[426896194,1782992824000,1064.42532876,0.000149,2]
[426896195,1782992829000,391.39347873,0.000149,2]
[426896196,1782992829000,1406.2156401,0.000149,2]
[426896197,1782992858000,300.0,0.000148,5]
[426896199,1782992860000,331.22455297,0.000149,5]
[426896198,1782992860000,268.77544703,0.000149,5]
[426896202,1782992873000,3547.93282197,0.000149,2]
[426896200,1782992873000,2157.7334096,0.000149,2]
[426896201,1782992873000,3547.93282197,0.000149,2]
[426896204,1782992908000,369.68,0.00028542,120]
[426896208,1782992927000,-1617.488942,0.00014825,2]
[426896209,1782992927000,-150.0,0.00014863,2]
[426896210,1782992927000,-2167.3113839,0.000149,2]
[426896211,1782992927000,-3934.8003259,0.000149,2]
[426896212,1782992927000,-214.49407045,0.000149,2]
[426896215,1782992953000,-1460.8036752,0.000149,2]
[426896217,1782992953000,-1942.31722857,0.000149,2]
[426896219,1782992953000,-150.0,0.00014999,2]
[426896218,1782992953000,-151.0,0.00014997,2]
[426896216,1782992953000,-163.9,0.000149,2]
[426896220,1782992953000,-228.46131657,0.00014999,2]
[426896221,1782992953000,-271.53868343,0.00014999,2]
[426896229,1782992953000,-62.35699144,0.00014999,2]
[426896223,1782992953000,-500.0,0.00014999,2]
[426896224,1782992953000,-500.0,0.00014999,2]
[426896226,1782992953000,-500.0,0.00014999,2]
[426896225,1782992953000,-500.0,0.00014999,2]
[426896227,1782992953000,-500.0,0.00014999,2]
[426896228,1782992953000,-500.0,0.00014999,2]
[426896222,1782992953000,-500.0,0.00014999,2]
[426896230,1782992962000,10000.0,0.00030137,120]
[426896231,1782992977000,-1198.40607922,0.000149,2]
[426896232,1782992977000,-437.64300856,0.00014999,2]
[426896234,1782992977000,-500.0,0.00014999,2]
[426896233,1782992977000,-500.0,0.00014999,2]
[426896236,1782992977000,-500.0,0.00014999,2]
[426896238,1782992977000,-60.98163478,0.00014999,2]
[426896237,1782992977000,-500.0,0.00014999,2]
[426896239,1782992977000,-439.01836522,0.00014999,2]
[426896235,1782992977000,-558.05905569,0.00014999,2]
[426896246,1782992978000,-500.0,0.00014999,2]
[426896247,1782992978000,-242.03336632,0.00014999,2]
[426896245,1782992978000,-500.0,0.00014999,2]
[426896243,1782992978000,-500.0,0.00014999,2]
[426896244,1782992978000,-500.0,0.00014999,2]
[426896242,1782992978000,-500.0,0.00014999,2]
[426896241,1782992978000,-500.0,0.00014999,2]
[426896240,1782992978000,-500.0,0.00014999,2]
[426896248,1782992981000,-257.96663368,0.00014999,2]
[426896250,1782992981000,-500.0,0.00014999,2]
[426896249,1782992981000,-500.79171827,0.00014999,2]
[426896253,1782992981000,-500.0,0.00014999,2]
[426896251,1782992981000,-445.63027892,0.00014999,2]
[426896252,1782992981000,-500.0,0.00014999,2]
[426896258,1782992982000,-5000.0,0.00015,2]
[426896257,1782992982000,-1080.93991248,0.00015,2]
[426896256,1782992982000,-339.06593904,0.00014999,2]
[426896255,1782992982000,-375.60551761,0.00014999,2]
[426896254,1782992982000,-500.0,0.00014999,2]
[426896261,1782992983000,-5000.0,0.00015,2]
[426896260,1782992983000,-5000.0,0.00015,2]
[426896259,1782992983000,-5000.0,0.00015,2]
[426896264,1782992984000,-5000.0,0.00015,2]
[426896263,1782992984000,-5000.0,0.00015,2]
[426896262,1782992984000,-5000.0,0.00015,2]
[426896265,1782992985000,-5000.0,0.00015,2]
[426896266,1782992985000,-5000.0,0.00015,2]
[426896268,1782992985000,-5000.0,0.00015,2]
[426896267,1782992985000,999.0,0.00030137,120]
[426896270,1782992986000,-5000.0,0.00015,2]
[426896269,1782992986000,-5000.0,0.00015,2]
[426896274,1782992987000,-5000.0,0.00015,2]
[426896273,1782992987000,-5000.0,0.00015,2]
[426896272,1782992987000,-5000.0,0.00015,2]
[426896271,1782992987000,-5000.0,0.00015,2]
[426896276,1782992988000,-5000.0,0.00015,2]
[426896275,1782992988000,-5000.0,0.00015,2]
[426896279,1782992989000,-5000.0,0.00015,2]
[426896278,1782992989000,-5000.0,0.00015,2]
[426896277,1782992989000,-5000.0,0.00015,2]
[426896282,1782992990000,-5000.0,0.00015,2]
[426896281,1782992990000,-5000.0,0.00015,2]
[426896280,1782992990000,-5000.0,0.00015,2]
[426896283,1782992991000,-5000.0,0.00015,2]
[426896284,1782992991000,-5000.0,0.00015,2]
[426896285,1782992992000,-5000.0,0.00015,2]
[426896286,1782992993000,-5000.0,0.00015,2]
[426896287,1782992999000,-3500.0,0.00015,2]
[426896291,1782993003000,-4423.81260844,0.00015,2]
[426896289,1782993003000,-4040.19379889,0.00015,2]
[426896290,1782993003000,-1875.488821,0.00015,2]
[426896288,1782993003000,-383.61880955,0.00014897,2]
[426896292,1782993022000,506.45787464,0.00027454,120]
[426896314,1782993032000,-508696.89767129,0.00015,2]
[426896316,1782993032000,-478230.74662983,0.00015,2]
[426896318,1782993032000,-629851.68779831,0.00015,2]
[426896322,1782993032000,-17031.00850896,0.00016211,2]
[426896320,1782993032000,-1198.4060792,0.00016024,2]
[426896321,1782993032000,-255.0,0.00016124,2]
[426896315,1782993032000,-15360.57117228,0.00015,2]
[426896323,1782993032000,-1942.31722857,0.00016211,2]
[426896319,1782993032000,-1198.4060792,0.00015462,2]
[426896313,1782993032000,-5946.9977999,0.00015,2]
[426896309,1782993032000,-4179.6730015,0.00015,2]
[426896312,1782993032000,-17174.8447025,0.00015,2]
[426896306,1782993032000,-605.97758395,0.00015,2]
[426896324,1782993032000,-198.0,0.0001629,2]
[426896305,1782993032000,-8108.46660345,0.00015,2]
[426896307,1782993032000,-699.49483532,0.00015,2]
[426896304,1782993032000,-621.75888747,0.00014999,2]
[426896310,1782993032000,-830.496,0.00015,2]
[426896308,1782993032000,-682.33905071,0.00015,2]
[426896303,1782993032000,-528.0415,0.00014999,2]
[426896302,1782993032000,-187.82202794,0.0001499,2]
[426896301,1782993032000,-502.87462798,0.0001499,2]
[426896311,1782993032000,-500.91157275,0.00015,2]
[426896325,1782993032000,-250.0,0.0001639,2]
[426896317,1782993032000,-1000.0,0.00015,2]
[426896330,1782993032000,-1012.37610784,0.00017897,2]
[426896326,1782993032000,-1310.83330678,0.000166,2]
[426896363,1782993032000,-945.27878853,0.0002,2]
[426896364,1782993032000,-13111.44248121,0.0002,2]
[426896361,1782993032000,-52644.08357264,0.0002,2]
[426896340,1782993032000,-256.95,0.00019163,2]
[426896342,1782993032000,-3766.16,0.0001936,2]
[426896346,1782993032000,-311.0,0.00019452,2]
[426896344,1782993032000,-213.0,0.00019452,2]
[426896339,1782993032000,-2401.89,0.00019082,2]
[426896356,1782993032000,-541.6863968,0.0002,2]
[426896357,1782993032000,-200.0,0.0002,2]
[426896354,1782993032000,-1319.48002581,0.0002,2]
[426896359,1782993032000,-1065.08782467,0.0002,2]
[426896350,1782993032000,-634.49767965,0.0002,2]
[426896348,1782993032000,-199.5,0.00019863,2]
[426896337,1782993032000,-343.29,0.00019082,2]
[426896334,1782993032000,-1942.31722857,0.00018833,2]
[426896333,1782993032000,-17031.00850896,0.00018833,2]
[426896332,1782993032000,-736.0,0.00018629,2]
[426896329,1782993032000,-1942.31722857,0.00017522,2]
[426896327,1782993032000,-433.0,0.00017339,2]
[426896328,1782993032000,-17031.00850896,0.00017522,2]
[426896335,1782993032000,-167.32,0.00019013,2]
[426896331,1782993032000,-331.96678582,0.00018,2]
[426896352,1782993032000,-1074.79929104,0.0002,2]
[426896405,1782993033000,-524.16054508,0.000232,2]
[426896409,1782993033000,-310.75,0.00023864,2]
[426896403,1782993033000,-1942.31722857,0.00022767,2]
[426896414,1782993033000,-166.0,0.00024,2]
[426896398,1782993033000,-1146.18,0.00022466,2]
[426896401,1782993033000,-534.64943694,0.0002271,2]
[426896402,1782993033000,-17031.00850896,0.00022767,2]
[426896396,1782993033000,-1731.21,0.00022466,2]
[426896400,1782993033000,-164.0843544,0.000226,2]
[426896406,1782993033000,-262.46,0.00023496,2]
[426896404,1782993033000,-165.75,0.00022905,2]
[426896407,1782993033000,-160.0,0.00023727,2]
[426896420,1782993033000,-1263.44158793,0.00024,2]
[426896408,1782993033000,-195.11,0.00023762,2]
[426896413,1782993033000,-252.0,0.00024,2]
[426896411,1782993033000,-169.79097146,0.00024,2]
[426896412,1782993033000,-218.0,0.00024,2]
[426896417,1782993033000,-154.0,0.00024,2]
[426896425,1782993033000,-17031.00850896,0.00024078,2]
[426896422,1782993033000,-11222.34374177,0.00024,2]
[426896418,1782993033000,-153.0,0.00024,2]
[426896419,1782993033000,-3600.0,0.00024,2]
[426896426,1782993033000,-1942.31722857,0.00024078,2]
[426896416,1782993033000,-173.0,0.00024,2]
[426896395,1782993033000,-200.0,0.00022273,2]
[426896421,1782993033000,-292.0,0.00024,2]
[426896410,1782993033000,-168.0,0.00024,2]
[426896397,1782993033000,-1439.65,0.00022466,2]
[426896381,1782993033000,-24663.9,0.00020951,2]
[426896399,1782993033000,-36264.51564187,0.000225,2]
[426896365,1782993033000,-18159.59621831,0.0002,2]
[426896371,1782993033000,-17031.00850896,0.00020144,2]
[426896369,1782993033000,-184.10020922,0.0002,2]
[426896367,1782993033000,-4711.00965105,0.0002,2]
[426896374,1782993033000,-2671.67656594,0.00020397,7]
[426896372,1782993033000,-1942.31722857,0.00020144,2]
[426896373,1782993033000,-1785.951455,0.00020397,7]
[426896370,1782993033000,-609.0,0.00020024,2]
[426896375,1782993033000,-500.0,0.00020398,7]
[426896376,1782993033000,-637.4002,0.00020548,2]
[426896378,1782993033000,-190.81,0.00020777,2]
[426896377,1782993033000,-500.0,0.00020672,7]
[426896391,1782993033000,-829.999999,0.00022,10]
[426896388,1782993033000,-1942.31722857,0.00021456,2]
[426896382,1782993033000,-1577.6,0.00020951,2]
[426896379,1782993033000,-3614.8662,0.00020897,7]
[426896387,1782993033000,-17031.00850896,0.00021456,2]
[426896380,1782993033000,-168343.3,0.00020951,2]
[426896384,1782993033000,-150.99,0.00020951,2]
[426896385,1782993033000,-9999.99,0.00020951,2]
[426896386,1782993033000,-961.19242323,0.00021434,2]
[426896383,1782993033000,-436.82,0.00020951,2]
[426896390,1782993033000,-226.69561236,0.000215,2]
[426896392,1782993033000,-2217.18435429,0.00022,2]
[426896394,1782993033000,-245.37995487,0.0002211,2]
[426896393,1782993033000,-300.0,0.00022,2]
[426896389,1782993033000,-56342.66305972,0.000215,2]
[426896423,1782993033000,-155.0,0.00024,2]
[426896415,1782993033000,-167.0,0.00024,2]
[426896424,1782993033000,-153.0,0.00024,2]
[426896454,1782993033000,-173.63,0.00024658,2]
[426896463,1782993033000,-9999.99,0.00024967,2]
[426896459,1782993033000,-799.78972983,0.00024867,2]
[426896456,1782993033000,-4178.36,0.00024761,2]
[426896465,1782993033000,-299.99,0.00024967,7]
[426896461,1782993033000,-3486.89799801,0.000249,2]
[426896460,1782993033000,-795.61595578,0.000249,2]
[426896466,1782993033000,-151.6066332,0.00024967,2]
[426896469,1782993033000,-218.0,0.00025,2]
[426896468,1782993033000,-2297.92,0.00025,2]
[426896472,1782993033000,-312.0,0.00025,2]
[426896471,1782993033000,-213.0,0.00025,2]
[426896467,1782993033000,-205.69219556,0.00024976,4]
[426896470,1782993033000,-252.0,0.00025,2]
[426896474,1782993033000,-8754.13,0.00025,2]
[426896482,1782993033000,-271.7929933,0.00025076,2]
[426896473,1782993033000,-173.0,0.00025,2]
[426896484,1782993033000,-678.76,0.00025342,2]
[426896475,1782993033000,-3751.2,0.00025,2]
[426896477,1782993033000,-153.0,0.00025,2]
[426896478,1782993033000,-292.0,0.00025,2]
[426896481,1782993033000,-153.0,0.00025,2]
[426896476,1782993033000,-2500.47,0.00025,2]
[426896480,1782993033000,-159.0,0.00025,2]
[426896479,1782993033000,-461720.84956261,0.00025,2]
[426896485,1782993033000,-164.65,0.00025347,2]
[426896427,1782993033000,-8045.23,0.000242,2]
[426896458,1782993033000,-249.0,0.00024863,2]
[426896457,1782993033000,-347.89,0.00024846,2]
[426896483,1782993033000,-52030.53299617,0.00025176,2]
[426896462,1782993033000,-1605.74,0.00024967,2]
[426896464,1782993033000,-9290.58,0.00024967,2]
[426896428,1782993033000,-3447.39,0.000242,2]
[426896435,1782993033000,-151.0,0.00024398,2]
[426896429,1782993033000,-2262.92528674,0.00024329,2]
[426896438,1782993033000,-151.0,0.00024398,2]
[426896436,1782993033000,-151.0,0.00024398,2]
[426896437,1782993033000,-151.0,0.00024398,2]
[426896431,1782993033000,-151.0,0.00024398,2]
[426896432,1782993033000,-151.0,0.00024398,2]
[426896440,1782993033000,-151.0,0.00024398,2]
[426896439,1782993033000,-151.0,0.00024398,2]
[426896434,1782993033000,-151.0,0.00024398,2]
[426896433,1782993033000,-151.0,0.00024398,2]
[426896430,1782993033000,-151.0,0.00024398,2]
[426896441,1782993033000,-151.0,0.00024398,2]
[426896455,1782993033000,-1000.0,0.00024658,2]
[426896449,1782993033000,-151.0,0.00024398,2]
[426896445,1782993033000,-151.0,0.00024398,2]
[426896443,1782993033000,-151.0,0.00024398,2]
[426896442,1782993033000,-151.0,0.00024398,2]
[426896450,1782993033000,-500.0,0.00024658,2]
[426896446,1782993033000,-151.0,0.00024398,2]
[426896451,1782993033000,-500.0,0.00024658,2]
[426896452,1782993033000,-557.206525,0.00024658,2]
[426896453,1782993033000,-172.314892,0.00024658,2]
[426896448,1782993033000,-151.0,0.00024398,2]
[426896444,1782993033000,-151.0,0.00024398,2]
[426896447,1782993033000,-151.0,0.00024398,2]
[426896490,1782993034000,-1942.31722857,0.00025389,2]
[426896488,1782993034000,-4478.25,0.00025371,2]
[426896487,1782993034000,-369.68,0.00025371,2]
[426896489,1782993034000,-17031.00850896,0.00025389,2]
[426896494,1782993034000,-191.25021777,0.0002562,2]
[426896493,1782993034000,-255.58744814,0.00025611,2]
[426896486,1782993034000,-4314.9,0.00025371,2]
[426896491,1782993034000,-173.53,0.00025421,2]
[426896497,1782993034000,-211.89936764,0.00025623,2]
[426896495,1782993034000,-183.81666099,0.0002562,2]
[426896498,1782993034000,-295.31504377,0.00025623,2]
[426896496,1782993034000,-158.81446721,0.0002562,2]
[426896499,1782993034000,-635.79593963,0.00025716,2]
[426896502,1782993034000,-1087.441,0.000258,2]
[426896500,1782993034000,-690.69665592,0.0002579,2]
[426896501,1782993034000,-997678.25992132,0.000258,2]
[426896492,1782993034000,-200.0,0.00025449,2]
[426896535,1782993038000,-158.0,0.00026,2]
[426896540,1782993038000,-18764.49843821,0.00026115,2]
[426896542,1782993038000,-395.04564656,0.00026167,2]
[426896543,1782993038000,-511.17489629,0.00026167,2]
[426896541,1782993038000,-179.81985592,0.00026167,2]
[426896545,1782993038000,-368.49119015,0.00026167,2]
[426896534,1782993038000,-173.0,0.00026,2]
[426896544,1782993038000,-318.533376,0.00026167,2]
[426896552,1782993038000,-211.97610217,0.00026167,2]
[426896539,1782993038000,-3728.81,0.00026005,2]
[426896531,1782993038000,-150.0,0.00025995,5]
[426896538,1782993038000,-153.0,0.00026,2]
[426896537,1782993038000,-292.0,0.00026,2]
[426896533,1782993038000,-252.0,0.00026,2]
[426896532,1782993038000,-218.0,0.00026,2]
[426896529,1782993038000,-3997.09,0.00025971,2]
[426896530,1782993038000,-678.76,0.00025975,2]
[426896527,1782993038000,-151.0,0.000258,2]
[426896525,1782993038000,-198.0,0.00015148,2]
[426896526,1782993038000,-734127.53378653,0.000258,2]
[426896550,1782993038000,-237.99476169,0.00026167,2]
[426896536,1782993038000,-13833.35636612,0.00026,10]
[426896547,1782993038000,-336.70896075,0.00026167,2]
[426896563,1782993038000,-177.4123005,0.00026177,2]
[426896549,1782993038000,-179.2937804,0.00026167,2]
[426896546,1782993038000,-406.50788367,0.00026167,2]
[426896572,1782993038000,-231.75465955,0.00026177,2]
[426896567,1782993038000,-313.90623354,0.00026177,2]
[426896570,1782993038000,-358.2212488,0.00026177,2]
[426896569,1782993038000,-314.49866899,0.00026177,2]
[426896568,1782993038000,-500.0,0.00026177,2]
[426896565,1782993038000,-388.38969193,0.00026177,2]
[426896571,1782993038000,-319.80551305,0.00026177,2]
[426896564,1782993038000,-304.63168673,0.00026177,2]
[426896559,1782993038000,-302.93218442,0.00026177,2]
[426896557,1782993038000,-360.18773848,0.00026167,2]
[426896566,1782993038000,-313.75617406,0.00026177,2]
[426896556,1782993038000,-353.29054109,0.00026167,2]
[426896562,1782993038000,-449.80253241,0.00026177,2]
[426896555,1782993038000,-397.42917539,0.00026167,2]
[426896561,1782993038000,-367.63332197,0.00026177,2]
[426896558,1782993038000,-406.62128354,0.00026177,2]
[426896560,1782993038000,-428.36079753,0.00026177,2]
[426896553,1782993038000,-324.93948856,0.00026167,2]
[426896548,1782993038000,-337.37375833,0.00026167,2]
[426896554,1782993038000,-157.81024348,0.00026167,2]
[426896551,1782993038000,-327.34677605,0.00026167,2]
[426896628,1782993039000,-1300.0,0.000268,9]
[426896637,1782993039000,-500.0,0.00027096,2]
[426896634,1782993039000,-292.0,0.00027,2]
[426896638,1782993039000,-5746.31,0.000272,2]
[426896629,1782993039000,-1600.0,0.000269,9]
[426896636,1782993039000,-150.0,0.00027035,5]
[426896633,1782993039000,-173.0,0.00027,2]
[426896631,1782993039000,-218.0,0.00027,2]
[426896640,1782993039000,-601.58,0.00027397,2]
[426896632,1782993039000,-252.0,0.00027,2]
[426896635,1782993039000,-153.0,0.00027,2]
[426896642,1782993039000,-2857.19,0.00027397,10]
[426896655,1782993039000,-40078.53,0.00027455,2]
[426896641,1782993039000,-1500.0,0.00027397,2]
[426896643,1782993039000,-2380.99,0.00027397,10]
[426896647,1782993039000,-734.2676904,0.000274,2]
[426896644,1782993039000,-1984.16,0.00027397,10]
[426896648,1782993039000,-2435.98260583,0.000274,2]
[426896645,1782993039000,-270.735822,0.00027397,2]
[426896646,1782993039000,-270.735822,0.00027397,2]
[426896649,1782993039000,-196.9,0.000274,7]
[426896650,1782993039000,-362.39,0.000274,7]
[426896627,1782993039000,-151.0,0.000268,2]
[426896654,1782993039000,-500.0,0.00027454,5]
[426896652,1782993039000,-5000.0,0.00027454,2]
[426896639,1782993039000,-678.76,0.00027243,2]
[426896625,1782993039000,-151.0,0.000268,2]
[426896605,1782993039000,-690.69665592,0.0002679,2]
[426896618,1782993039000,-256.743556,0.000268,2]
[426896659,1782993039000,-10006.1856191,0.000275,2]
[426896575,1782993039000,-339.96397921,0.00026177,2]
[426896574,1782993039000,-265.16606462,0.00026177,2]
[426896573,1782993039000,-431.38476967,0.00026177,2]
[426896576,1782993039000,-2138.37,0.00026179,2]
[426896578,1782993039000,-368.12214791,0.0002618,2]
[426896580,1782993039000,-590.63008754,0.0002618,2]
[426896582,1782993039000,-423.79873528,0.0002618,2]
[426896588,1782993039000,-1787.0,0.00026321,2]
[426896595,1782993039000,-900.0,0.000267,9]
[426896601,1782993039000,-55593.0,0.00026767,2]
[426896591,1782993039000,-678.76,0.00026609,2]
[426896597,1782993039000,-17031.00850896,0.000267,2]